[Event "FIDE WY-U16 Olympiad 2022"]
[Site "Nakhchivan"]
[Date "2022.10.05"]
[Round "4.16"]
[White "Jafarova, Aysel"]
[Black "Karimi, Setayesh"]
[Result "1-0"]
[ECO "A48"]
[WhiteElo "1534"]
[BlackElo "1925"]
[Annotator "TA"]
[PlyCount "87"]
[EventDate "2022.10.02"]
[EventType "team-tourn"]
[EventCountry "AZE"]
[SourceTitle "playchess.com"]
[Source "ChessBase"]
[SourceQuality "1"]
[BlackTeam "Iran"]
[BlackTeamCountry "IRI"]
[TimeControl "40/5400+30:1800+30"]

{[%evp 14,87,13,8,14,10,16,16,26,28,47,40,36,39,45,54,60,31,68,39,41,40,47,32,76,79,114,78,73,0,81,69,72,71,261,214,358,340,698,693,570,407,422,193,204,197,195,191,265,195,385,383,355,162,366,316,529,241,372,387,956,908,891,491,1403,656,1241,1164,5691,5197,29969,29973,29973,29974,29974,29975]} 1. d4 {[%emt 0:00:01]} Nf6 {[%emt 0:00:05]} 2. Bf4 {[%emt 0:00:14]} g6 {[%emt 0:00:23]} 3. Nf3 {[%emt 0:00:05]} Bg7 {[%emt 0:00:17]} 4. e3 {[%emt 0:00:29]} d5 {[%emt 0:00:16]} 5. Be2 {[%emt 0:02:54]} O-O {[%emt 0:01:36]} 6. h3 {[%emt 0:01:28]} c5 {[%emt 0:01:10]} 7. c3 {[%emt 0:06:03]} Nc6 {[%emt 0:00:51]} 8. O-O {[%emt 0:04:20]} Bf5 {[%emt 0:13:32] [#] D02: 1 d4 d5 2 Nf3 sidelines, including 2...Nf6 3 g3 and 2...Nf6 3 Bf4.} 9. Nh4 $146 {[%emt 0:12:16]} ({Predecessor:} 9. Nbd2 c4 10. b3 b5 11. bxc4 dxc4 12. a4 Nd5 13. axb5 Nxc3 14. Qe1 Nxe2+ 15. Qxe2 Bd3 16. Qd1 {1-0 (47) Tristan,L (2553)-Chernyavsky,A (2327) Chess.com INT 2022}) 9... Bxb1 {[%emt 0:05:45]} 10. Rxb1 {[%emt 0:04:51]} Ne4 {[%emt 0:00:19] The position is equal.} 11. Nf3 {[%emt 0:02:44]} c4 {[%emt 0:02:58]} 12. Qc2 {[%emt 0:01:08][%cal Oe2c4]} b5 {[%emt 0:04:58]} 13. Nd2 $1 {[%emt 0:08:57]} Nxd2 {[%emt 0:11:51]} 14. Qxd2 {[%emt 0:00:07]} Qa5 {[%emt 0:00:09]} 15. b3 {[%emt 0:09:01]} Rad8 {[%emt 0:09:14]} 16. bxc4 {[%emt 0:09:08]} bxc4 {[%emt 0:00:13]} 17. Rfd1 {[%emt 0:06:12]} e5 {[%emt 0:12:16]} 18. Bh2 {[%emt 0:01:53]} f5 {[%emt 0:06:24]} 19. Rb7 {[%emt 0:04:39] Black must now prevent dxe5.} f4 {[%emt 0:04:29]} 20. Bg4 {[%emt 0:05:06]} (20. exf4 $2 exd4 21. Bg4 dxc3 $19) 20... Kh8 {[%emt 0:05:29]} 21. Bd7 {[%emt 0:02:46] White is more active.} (21. exf4 exd4 22. f5 dxc3 $17) (21. dxe5 $16 Bxe5 22. Bxf4 Bxc3 23. Qc1) 21... Qa6 {[%emt 0:03:07]} (21... Nb8 $1 $11 22. Bg4 h5) 22. Bxc6 $16 {[%emt 0:03:39]} Qxc6 {[%emt 0:00:04]} 23. Rxa7 {[%emt 0:01:12] Hoping for dxe5.} f3 $2 {[%emt 0:02:52] This move loses the game for Black.} (23... Qb6 $16 24. Ra4 exd4 25. exd4 g5) 24. Bxe5 {[%emt 0:04:21]} Bxe5 {[%emt 0:00:05]} (24... Rd7 $142 25. Rxd7 Qxd7) 25. dxe5 $18 {[%emt 0:00:03] [#] And now Qd4 would win.} fxg2 $2 {[%emt 0:00:38]} (25... Qb6) 26. Qd4 {[%emt 0:01:00] White threatens e6+ and mate.} Qe6 {[%emt 0:01:50]} 27. Kxg2 {[%emt 0:00:38]} g5 {[%emt 0:04:34]} 28. Qg4 {[%emt 0:05:07]} (28. Rb1 $142 {Intending Rbb7 and mate.} Qf5 29. Rb2) 28... Qxe5 {[%emt 0:02:16]} 29. Qd4 {[%emt 0:00:38] Dancing on a razor blade.} Qxd4 {[%emt 0:00:18]} 30. Rxd4 {[%emt 0:00:13][%mdl 4096] Endgame KRR-KRR} (30. exd4 Ra8 31. Rxa8 Rxa8 $11) 30... Rb8 {[%emt 0:00:46]} (30... Ra8 {was worth a try.} 31. Rxa8 Rxa8 32. Rxd5 Rxa2) 31. Rd2 {[%emt 0:01:41]} Rb5 $2 {[%emt 0:00:22]} (31... Ra8 32. Rxa8 Rxa8 33. Rxd5 Rxa2) 32. a4 {[%emt 0:00:36][%cal Ba2a4,Ba4a5,Ba5a6][%mdl 32]} Rb3 {[%emt 0:00:10]} 33. Rc2 {[%emt 0:00:27]} (33. Rxd5 $142 Rb2 34. Kg3 (34. Rxg5 Rbxf2+ 35. Kg1 Re2 $18) 34... Rbxf2 35. Rdd7 (35. Rxg5 R2f3+ 36. Kg4 Rxe3 $16) 35... R2f3+ 36. Kg4 h5+ 37. Kxg5) 33... Rd8 {[%emt 0:00:13]} (33... Ra3 {might work better.} 34. a5 Kg8) 34. a5 {[%emt 0:01:10]} Ra3 $2 {[%emt 0:00:03]} (34... Rbb8 35. Rd2 Rb3) 35. Kg3 {[%emt 0:00:52]} (35. a6 $142) 35... h5 {[%emt 0:02:13]} (35... Rb8 {was necessary.} 36. Kg4 Rb5 37. Kxg5 Kg8) 36. a6 {[%emt 0:01:16]} Rd6 $2 {[%emt 0:00:53]} (36... Rb8 37. Rd2 Ra5) 37. Rb2 {[%emt 0:00:20]} Rd8 {[%emt 0:00:05] Prevents Rb8.} 38. Rb6 {[%emt 0:00:36]} Rxc3 {[%emt 0:00:24]} (38... d4 $142 39. cxd4 Rc8 40. Rh6+ Kg8 41. Rxh5 c3 42. Rxg5+ Kh8 43. Rh5+ Kg8) 39. Rh6+ {[%emt 0:00:04]} Kg8 {[%emt 0:00:04]} 40. Rah7 {[%emt 0:00:47] [#] Rh8+ would kill now.} Rf8 {[%emt 0:00:39]} 41. Rh8+ {[%emt 0:30:11]} Kg7 {[%emt 0:30:42]} 42. R6h7+ {[%emt 0:00:24] White mates.} Kg6 {[%emt 0:00:06]} 43. Rxf8 {[%emt 0:00:12]} Kxh7 {[%emt 0:00:05]} 44. a7 {[%emt 0:00:06] Weighted Error Value: White=0.67/Black=0.82} 1-0

[Event "FIDE WY-U16 Olympiad 2022"]
[Site "Nakhchivan"]
[Date "2022.10.05"]
[Round "4.16"]
[White "Gambarova, Havva"]
[Black "Diaz Bartolo, Elizabeth Schahrazad"]
[Result "0-1"]
[ECO "B23"]
[WhiteElo "1347"]
[BlackElo "1666"]
[Annotator "NA RC COMBH"]
[PlyCount "102"]
[EventDate "2022.10.02"]
[EventType "team-tourn"]
[EventCountry "AZE"]
[SourceTitle "playchess.com"]
[Source "ChessBase"]
[SourceQuality "1"]
[BlackTeam "Mexico"]
[BlackTeamCountry "MEX"]
[TimeControl "40/5400+30:1800+30"]

1. e4 {[%emt 0:00:07]} c5 {[%emt 0:00:14]} 2. Nc3 {[%emt 0:00:04]} Nc6 {[%emt 0:00:11]} 3. f4 {[%emt 0:00:04]} e6 {[%emt 0:00:14]} 4. Bc4 {[%emt 0:00:56]} a6 {[%emt 0:00:08]} 5. a4 {[%emt 0:00:04]} Nge7 {[%emt 0:00:36]} 6. d3 {[%emt 0:00:43]} d5 {[%emt 0:01:20]} 7. Bb3 {[%emt 0:00:23]} g6 {[%emt 0:04:06]} 8. Nf3 {[%emt 0:02:52]} Bg7 {[%emt 0:00:36]} 9. O-O {[%emt 0:01:56]} Rb8 {[%emt 0:07:41]} 10. Qe1 {[%emt 0:06:50]} O-O {[%emt 0:01:49]} 11. Kh1 {[%emt 0:16:15]} b5 {[%emt 0:01:52]} 12. axb5 {[%emt 0:00:13]} axb5 {[%emt 0:00:07]} 13. e5 {[%emt 0:14:55]} Nf5 {[%emt 0:03:12]} 14. g4 {[%emt 0:02:32]} Nfd4 {[%emt 0:00:35]} 15. Nxd4 {[%emt 0:00:43]} Nxd4 {[%emt 0:00:19]} 16. Be3 {[%emt 0:00:41]} Nxb3 {[%emt 0:00:23]} 17. cxb3 {[%emt 0:00:04]} d4 {[%emt 0:00:07]} 18. Ne4 {[%emt 0:00:37]} dxe3 {[%emt 0:00:09]} 19. Qxe3 {[%emt 0:00:05]} Qd5 {[%emt 0:03:40]} 20. Qxc5 {[%emt 0:03:28]} Qxd3 {[%emt 0:01:56]} 21. Nd6 {[%emt 0:03:58]} Qxb3 {[%emt 0:05:37]} 22. Ra7 {[%emt 0:02:39]} Qd5+ {[%emt 0:03:59]} 23. Qxd5 {[%emt 0:00:10]} exd5 {[%emt 0:00:06]} 24. h3 {[%emt 0:00:51]} Be6 {[%emt 0:08:47]} 25. f5 {[%emt 0:06:21]} Bxe5 {[%emt 0:00:34]} 26. fxe6 {[%emt 0:00:04]} Bxd6 {[%emt 0:00:27]} 27. exf7+ {[%emt 0:01:13]} Kg7 {[%emt 0:00:13]} 28. h4 {[%emt 0:00:31]} Be5 {[%emt 0:00:34]} 29. b3 {[%emt 0:03:12]} Bc3 {[%emt 0:02:47]} 30. h5 {[%emt 0:01:17]} d4 {[%emt 0:02:16]} 31. Rc7 {[%emt 0:13:51]} Ra8 {[%emt 0:01:50]} 32. Kg2 {[%emt 0:01:17]} b4 {[%emt 0:01:58]} 33. Rf3 {[%emt 0:02:31]} Ra2+ {[%emt 0:01:17]} 34. Kh3 {[%emt 0:00:12]} g5 {[%emt 0:01:50]} 35. Re7 {[%emt 0:05:06]} d3 {[%emt 0:05:41]} 36. h6+ {[%emt 0:00:39]} Kxh6 {[%emt 0:00:24]} 37. Re8 {[%emt 0:00:25]} Kg7 {[%emt 0:00:15]} 38. Rxd3 {[%emt 0:01:25]} Rxf7 {[%emt 0:00:57]} 39. Rde3 {[%emt 0:02:59]} Bd4 {[%emt 0:01:22]} 40. Rd3 {[%emt 0:00:42]} Rb2 {[%emt 0:02:17]} 41. Rd8 {[%emt 0:30:44]} Be5 {[%emt 0:30:31]} 42. Rg8+ {[%emt 0:00:50]} Kxg8 {[%emt 0:00:12]} 43. Rd8+ {[%emt 0:00:14]} Kg7 {[%emt 0:00:08]} 44. Rg8+ {[%emt 0:00:09]} Kf6 {[%emt 0:00:22]} 45. Rg6+ {[%emt 0:00:13]} Ke7 {[%emt 0:00:39]} 46. Re6+ {[%emt 0:00:06]} Kd7 {[%emt 0:00:20]} 47. Rd6+ {[%emt 0:01:02]} Kc8 {[%emt 0:00:12]} 48. Rd8+ {[%emt 0:00:32]} Kb7 {[%emt 0:00:52]} 49. Rb8+ {[%emt 0:00:18]} Kc6 {[%emt 0:00:12]} 50. Rb6+ {[%emt 0:02:11]} Kd5 {[%emt 0:00:19]} 51. Rb5+ {[%emt 0:04:22]} Ke4 {[%emt 0:00:09]} 0-1

[Event "FIDE WY-U16 Olympiad 2022"]
[Site "Nakhchivan"]
[Date "2022.10.05"]
[Round "4.17"]
[White "Pranav Vijay"]
[Black "Omonov, Asrorjon"]
[Result "1-0"]
[ECO "B12"]
[WhiteElo "2265"]
[BlackElo "2064"]
[Annotator "TA"]
[PlyCount "101"]
[EventDate "2022.10.02"]
[EventType "team-tourn"]
[EventCountry "AZE"]
[SourceTitle "playchess.com"]
[Source "ChessBase"]
[SourceQuality "1"]
[WhiteTeam "India"]
[BlackTeam "Uzbekistan"]
[WhiteTeamCountry "IND"]
[BlackTeamCountry "UZB"]
[TimeControl "40/5400+30:1800+30"]

{[%evp 14,101,30,12,45,37,60,57,65,57,50,39,86,85,71,27,36,0,17,39,108,7,0,0,145,0,0,0,0,0,0,0,12,16,13,19,61,37,76,0,0,0,39,44,46,31,179,80,70,64,165,181,150,31,12,12,52,27,40,0,0,0,0,0,0,0,0,0,0,0,29,64,44,68,72,58,593,547,29973,29974,29969,29970,29972,29967,29986,29986,29985,29986,29989,29990]} 1. e4 {[%emt 0:00:14]} c6 {[%emt 0:00:39]} 2. d4 {[%emt 0:00:09]} d5 {[%emt 0:00:20]} 3. e5 {[%emt 0:00:10]} Bf5 {[%emt 0:01:12]} 4. Nf3 {[%emt 0:00:09]} e6 {[%emt 0:00:05]} 5. Be2 {[%emt 0:00:08]} Nd7 {[%emt 0:00:12]} 6. O-O {[%emt 0:00:26]} h6 {[%emt 0:00:06]} 7. c3 {[%emt 0:00:25]} Ne7 {[%emt 0:00:12]} 8. Na3 {[%emt 0:00:32]} g5 {[%emt 0:02:35] B12: Caro-Kann: Advance Variation.} 9. Nc2 {[%emt 0:02:26]} Bg7 {[%emt 0:00:27]} 10. Ne3 {[%emt 0:02:36]} Bg6 {[%emt 0:01:22] White is slightly better.} 11. a4 {[%emt 0:01:37]} a5 {[%emt 0:07:55] [#]} 12. h4 $146 {[%emt 0:06:08]} ({Predecessor:} 12. b4 O-O 13. Ba3 f6 14. exf6 Bxf6 15. Ng4 Bg7 16. b5 Bh5 17. Nge5 Nxe5 18. Nxe5 Bxe2 19. Qxe2 {1-0 (48) Allahverdiyeva,A (2120)-Uzuner,T (1869) Chess.com INT 2022}) 12... f6 {[%emt 0:09:19]} (12... Nf5) (12... Nf5 $1 $14) 13. exf6 $16 {[%emt 0:02:20]} Nxf6 {[%emt 0:00:12]} 14. hxg5 {[%emt 0:06:47]} hxg5 {[%emt 0:00:08]} 15. Nxg5 {[%emt 0:00:22] Hoping for Ng4.} Qd6 {[%emt 0:00:10][%csl Gh8][%cal Rd6h2]} 16. g3 {[%emt 0:00:23]} Ne4 {[%emt 0:12:03]} (16... O-O-O) (16... O-O-O $1 $14) 17. Ng2 {[%emt 0:14:00]} ({White should play} 17. Nxe4 $16 Bxe4 18. Bh5+ (18. Bf3 e5 $11) 18... Kd7 19. Bf3 Bxf3 20. Qxf3) 17... Bf6 $1 $11 {[%emt 0:20:25]} 18. Nxe4 {[%emt 0:09:33]} (18. Bf4 e5 19. dxe5 Bxe5 $16) 18... Bxe4 {[%emt 0:00:18]} (18... dxe4 $11 19. Qb3 O-O-O) 19. Bg4 {[%emt 0:00:23]} (19. Bh5+ $1 $16 Kd8 20. Re1) 19... O-O-O $1 {[%emt 0:10:10]} 20. Bf4 {[%emt 0:00:44]} Qd7 {[%emt 0:00:10]} 21. f3 {[%emt 0:04:57]} Bf5 {[%emt 0:07:40]} 22. Bxf5 {[%emt 0:07:45]} Nxf5 {[%emt 0:06:50]} 23. g4 {[%emt 0:01:11]} Ne7 {[%emt 0:00:38]} 24. Qd3 {[%emt 0:02:30] Prevents Ng6.} Rdg8 {[%emt 0:01:31]} 25. Kf2 $36 {[%emt 0:00:43][%mdl 2048] aiming for Rh1. White fights for an advantage.} Ng6 {[%emt 0:03:55]} 26. Rh1 {[%emt 0:00:19]} Nxf4 {[%emt 0:02:28]} 27. Nxf4 {[%emt 0:00:06][%cal Bg2f4,Bf4h3,Bh3f2][%mdl 32] And now Rxh8 would win.} Bh4+ $1 {[%emt 0:00:13]} 28. Ke2 {[%emt 0:02:39]} Qf7 {[%emt 0:01:59] Inhibits Ng6.} 29. Nh3 {[%emt 0:06:25][%cal Og4g5]} ({Not} 29. Qe3 Bg5 30. Qxe6+ Qxe6+ 31. Nxe6 Rxh1 32. Rxh1 Re8 $17) 29... Rh6 {[%emt 0:01:58]} (29... Qc7 $14) 30. Rag1 {[%emt 0:00:44]} (30. g5 $1 $18 {[%cal Rg5h6]} Rhh8 31. f4) 30... Bd8 {[%emt 0:05:22]} 31. Nf2 {[%emt 0:01:45]} Rgh8 {[%emt 0:00:26]} (31... Rhg6 $14) 32. Rxh6 $18 {[%emt 0:05:36]} Rxh6 {[%emt 0:00:06] [#]} 33. Rh1 {[%emt 0:00:05]} (33. g5 $1 $16 {[%cal Rg5h6]} Rg6 34. Qe3) 33... Rxh1 $14 {[%emt 0:01:52]} 34. Nxh1 {[%emt 0:00:01][%mdl 4096] Endgame KQB-KQN} Qf4 {[%emt 0:00:08]} 35. Nf2 {[%emt 0:06:56] Strongly threatening Qe3.} (35. Qe3 $5 {[%cal Re3f4]} Qh2+ 36. Nf2 $16) 35... Bg5 {[%emt 0:00:45]} 36. Kf1 {[%emt 0:02:03] Black must now prevent Qe2.} (36. Qd1 $5 {[%cal Re2f1]}) 36... Qc1+ {[%emt 0:01:40]} 37. Nd1 {[%emt 0:00:44]} Bd2 {[%emt 0:00:09]} 38. Qe2 {[%emt 0:02:06]} Kd7 {[%emt 0:00:16]} 39. Kg2 {[%emt 0:00:42]} Ke7 {[%emt 0:01:02]} 40. Kh3 {[%emt 0:02:45]} Kd7 {[%emt 0:00:39]} 41. Nf2 {[%emt 0:31:25]} Qxb2 {[%emt 0:14:17]} 42. Nd3 {[%emt 0:00:00] Intending Nc5+ and mate.} Qxc3 {[%emt 0:00:13]} 43. Nc5+ {[%emt 0:00:00]} Kc7 {[%emt 0:02:04]} 44. Nxe6+ {[%emt 0:00:00]} Kc8 $2 {[%emt 0:02:21][%mdl 8192]} ({Better is} 44... Kb6 $1 $14) 45. g5 $18 {[%emt 0:00:00][%cal Bg4g5,Bg5g6][%mdl 32]} Qe3 {[%emt 0:09:15]} 46. Qxe3 {[%emt 0:00:00] White mates.} Bxe3 {[%emt 0:00:01]} 47. g6 {[%emt 0:00:00]} Bh6 {[%emt 0:00:01]} 48. Kg4 {[%emt 0:00:00]} b5 {[%emt 0:04:49]} 49. Kh5 {[%emt 0:00:00]} ({Don't go for} 49. g7 $2 {[#]} Bxg7 $1 50. Nc5 (50. Nxg7 $2 b4 $19) 50... Bxd4 $19) 49... Bg7 {[%emt 0:00:36]} 50. Nxg7 {[%emt 0:00:00]} bxa4 {[%emt 0:00:04]} 51. Nf5 {[%emt 0:00:00] Weighted Error Value: White=0.21 (precise) /Black=0.45} 1-0

[Event "FIDE WY-U16 Olympiad 2022"]
[Site "Nakhchivan"]
[Date "2022.10.05"]
[Round "4.17"]
[White "Mendez Machado, Andre"]
[Black "Swarnavo, Choudhury"]
[Result "0-1"]
[ECO "B24"]
[WhiteElo "2009"]
[BlackElo "1979"]
[Annotator "TA"]
[PlyCount "74"]
[EventDate "2022.10.02"]
[EventType "team-tourn"]
[EventCountry "AZE"]
[SourceTitle "playchess.com"]
[Source "ChessBase"]
[SourceQuality "1"]
[WhiteTeam "Panama"]
[WhiteTeamCountry "PAN"]
[TimeControl "40/5400+30:1800+30"]

{[%evp 9,74,10,25,8,17,13,3,7,31,39,36,28,38,34,21,33,28,34,37,24,29,46,52,0,76,71,67,66,72,0,31,12,24,22,29,30,36,10,63,3,17,33,75,-107,26,27,79,93,83,33,37,39,39,-24,-35,-48,-53,-1939,-1873,-1727,-1534,-29994,-29995,-29995,-29996,-29996,-29997]} 1. e4 c5 {[%emt 0:00:39]} 2. Nc3 {[%emt 0:00:06]} Nc6 {[%emt 0:00:05]} 3. Bb5 {[%emt 0:00:04]} Nd4 {[%emt 0:00:05]} 4. Nf3 {[%emt 0:00:02]} a6 {[%emt 0:00:18]} 5. Bd3 {[%emt 0:00:02]} g6 {[%emt 0:07:48]} 6. Rb1 {[%emt 0:00:30] B23: Closed Sicilian: Lines without g3.} Nc6 {[%emt 0:01:20]} 7. a3 {[%emt 0:00:17]} b5 {[%emt 0:00:49]} 8. b4 {[%emt 0:00:14] The position is equal.} c4 {[%emt 0:07:08]} 9. Be2 {[%emt 0:00:01]} Bg7 {[%emt 0:00:10] [#]} 10. a4 $146 {[%emt 0:24:21]} ({Predecessor:} 10. Bb2 Nf6 11. d3 cxd3 12. cxd3 O-O 13. O-O Bb7 14. d4 d5 15. e5 Ne4 16. Nxe4 dxe4 {1-0 (27) Sanal,V (2563)-Nazaretyan,T (2277) Tallinn 2019}) 10... Rb8 {[%emt 0:06:02]} 11. axb5 {[%emt 0:01:09]} axb5 {[%emt 0:00:36]} 12. d4 {[%emt 0:00:49]} d6 {[%emt 0:19:33]} 13. O-O {[%emt 0:09:29]} e6 {[%emt 0:06:47]} 14. Bf4 {[%emt 0:16:31]} Nge7 {[%emt 0:02:10]} 15. Qd2 {[%emt 0:06:50]} O-O {[%emt 0:01:08]} 16. d5 {[%emt 0:01:18]} ({Better is} 16. Rfd1 $14) 16... Ne5 {[%emt 0:14:58]} (16... exd5 $11 {keeps the balance.} 17. Nxd5 Nxd5 18. Qxd5 Be6 19. Qxd6 (19. Qxc6 Rb6 $17) 19... Rc8) 17. Nd4 {[%emt 0:01:03]} exd5 {[%emt 0:03:38]} 18. exd5 {[%emt 0:16:01]} Bd7 {[%emt 0:05:17]} 19. Bg3 {[%emt 0:01:16]} (19. Bg5 $16) 19... Nf5 {[%emt 0:01:52]} 20. Nxf5 {[%emt 0:02:57]} Bxf5 {[%emt 0:00:37]} 21. Ra1 {[%emt 0:01:29]} Re8 {[%emt 0:02:22]} 22. Ra5 {[%emt 0:04:33]} Qd7 {[%emt 0:01:10][%cal Og6g5]} 23. Rfa1 {[%emt 0:00:49]} Ng4 {[%emt 0:05:21]} ({Black should play} 23... Qe7 $11) 24. Bf3 {[%emt 0:01:02]} (24. Bxg4 $14 Bxg4 25. Ra6) 24... Ne5 $11 {[%emt 0:06:11]} 25. Bd1 {[%emt 0:01:47]} Ng4 {[%emt 0:00:38]} 26. h3 $2 {[%emt 0:00:28]} (26. Bxg4 $16 Bxg4 27. Ra6) 26... Nf6 {[%emt 0:01:34] Black is much more active.} (26... Bh6 $1 $17 {[%cal Rh6d2]} 27. f4 Ne3) 27. Bf3 {[%emt 0:03:44]} Ne4 {[%emt 0:01:02] [#]} (27... Be4 $11 {remains equal.}) 28. Bxe4 $1 $16 {[%emt 0:01:19]} Bxe4 {[%emt 0:00:30] [#]} 29. R1a3 {[%emt 0:03:35]} (29. f3 $1 $16 Bxc3 30. Qxc3 Bxd5 31. Rd1) 29... Bxc3 $14 {[%emt 0:02:14]} 30. Rxc3 {[%emt 0:00:21]} Qb7 $1 {[%emt 0:00:48]} 31. Bxd6 {[%emt 0:01:48]} (31. Re3 $14 Bxd5 32. f3 (32. Bxd6 Rbd8 $11)) 31... Rbd8 $36 {[%emt 0:00:14][%cal Bb8d8,Bd8d5,Bd5d1,Bd1h1,Bh1h3][%mdl 2080] Black is more active.} 32. Bc5 {[%emt 0:00:32]} Rxd5 {[%emt 0:00:40]} 33. Qf4 {[%emt 0:00:16][%mdl 8192] Loses the game.} (33. Qe2 $15) 33... Rd1+ $19 {[%emt 0:00:38]} 34. Kh2 {[%emt 0:00:12]} Bxg2 {[%emt 0:00:38] ( -> ...Rh1+)} 35. Ra7 {[%emt 0:00:33]} Rh1+ {[%emt 0:00:15] Black mates.} 36. Kg3 {[%emt 0:01:28]} Rxh3+ {[%emt 0:00:04]} 37. Kg4 {[%emt 0:00:14]} Qc8+ {[%emt 0:00:03] Weighted Error Value: White=0.64/Black=0.21 (precise)} 0-1